[Event "*** Titled Tuesday 3|2 Blitz (Early)"]
[Site "Chess.com"]
[Date "2016.11.01"]
[Round "1"]
[White "josiwales"]
[Black "Imre91"]
[Result "0-1"]
[WhiteElo "2179"]
[BlackElo "2517"]
[TimeControl "180+2"]
[EndTime "11:03:34 PDT"]
[Termination "Imre91 won by resignation"]

1. e4 {[%clk 0:03:02]} 1... e6 {[%clk 0:02:57.6]} 2. d3 {[%clk 0:03:02.1]} 2...
c5 {[%clk 0:02:57.7]} 3. Nc3 {[%clk 0:03:02.7]} 3... Nc6 {[%clk 0:02:59.2]} 4.
g3 {[%clk 0:03:03.6]} 4... Rb8 {[%clk 0:02:59.8]} 5. Bg2 {[%clk 0:03:05]} 5...
b5 {[%clk 0:03:01.3]} 6. f4 {[%clk 0:03:03.7]} 6... Qb6 {[%clk 0:02:56.8]} 7.
Nf3 {[%clk 0:03:02.9]} 7... c4 {[%clk 0:02:57.6]} 8. d4 {[%clk 0:02:56]} 8... b4
{[%clk 0:02:58]} 9. Ne2 {[%clk 0:02:53.8]} 9... Nf6 {[%clk 0:02:59.5]} 10. Ne5
{[%clk 0:02:49.4]} 10... Ba6 {[%clk 0:02:54.5]} 11. c3 {[%clk 0:02:41.4]} 11...
bxc3 {[%clk 0:02:50.9]} 12. bxc3 {[%clk 0:02:36.3]} 12... d6 {[%clk 0:02:51.9]}
13. Nxc6 {[%clk 0:02:36.6]} 13... Qxc6 {[%clk 0:02:53.8]} 14. O-O {[%clk
0:02:38.4]} 14... Nxe4 {[%clk 0:02:53.3]} 15. Bxe4 {[%clk 0:02:32.3]} 15... Qxe4
{[%clk 0:02:53.5]} 16. Qa4+ {[%clk 0:02:33.8]} 16... Bb5 {[%clk 0:02:55.1]} 17.
Qxa7 {[%clk 0:02:34.9]} 17... Ra8 {[%clk 0:02:54.4]} 18. Qb6 {[%clk 0:02:24.1]}
18... Bc6 {[%clk 0:02:54.3]} 19. Kf2 {[%clk 0:02:22]} 19... Be7 {[%clk
0:02:55.2]} 20. a4 {[%clk 0:02:09.9]} 20... O-O {[%clk 0:02:55.3]} 21. a5 {[%clk
0:01:45.6]} 21... Rfb8 {[%clk 0:02:53.9]} 22. Qc7 {[%clk 0:01:30.9]} 22... Rb7
{[%clk 0:02:52.8]} 0-1

[Event "*** Titled Tuesday 3|2 Blitz (Early)"]
[Site "Chess.com"]
[Date "2016.11.01"]
[Round "1"]
[White "maciek_92"]
[Black "AdrianaNikolova"]
[Result "1-0"]
[WhiteElo "2550"]
[BlackElo "2255"]
[TimeControl "180+2"]
[EndTime "11:05:32 PDT"]
[Termination "maciek_92 won by resignation"]

1. c4 {[%clk 0:03:00.4]} 1... e5 {[%clk 0:02:57.4]} 2. Nc3 {[%clk 0:03:00.4]}
2... c6 {[%clk 0:02:57.5]} 3. Nf3 {[%clk 0:03:00.2]} 3... d6 {[%clk 0:02:57.5]}
4. d4 {[%clk 0:03:00]} 4... Qc7 {[%clk 0:02:57.1]} 5. h3 {[%clk 0:02:57.1]} 5...
Nf6 {[%clk 0:02:56]} 6. e4 {[%clk 0:02:57.9]} 6... Be7 {[%clk 0:02:55.2]} 7. Be2
{[%clk 0:02:55.7]} 7... O-O {[%clk 0:02:55.3]} 8. O-O {[%clk 0:02:57.1]} 8... a6
{[%clk 0:02:55.2]} 9. Be3 {[%clk 0:02:53.3]} 9... h6 {[%clk 0:02:53.8]} 10. Rc1
{[%clk 0:02:53.6]} 10... Nh7 {[%clk 0:02:52.6]} 11. c5 {[%clk 0:02:46.1]} 11...
exd4 {[%clk 0:02:46.5]} 12. cxd6 {[%clk 0:02:47]} 12... Bxd6 {[%clk 0:02:40.2]}
13. Bxd4 {[%clk 0:02:44.6]} 13... Qe7 {[%clk 0:02:21.7]} 14. e5 {[%clk
0:02:44.3]} 14... Bc5 {[%clk 0:02:09.4]} 15. Nd5 {[%clk 0:02:43]} 15... cxd5
{[%clk 0:02:03.1]} 16. Bxc5 {[%clk 0:02:43.2]} 16... Qe6 {[%clk 0:01:53.7]} 17.
Bxf8 {[%clk 0:02:41.4]} 17... Nxf8 {[%clk 0:01:53]} 18. Nd4 {[%clk 0:02:36.9]}
18... Qe8 {[%clk 0:01:47.6]} 19. Bf3 {[%clk 0:02:37]} 19... Be6 {[%clk
0:01:44.7]} 20. Qb3 {[%clk 0:02:32.9]} 20... Nc6 {[%clk 0:01:41.5]} 21. Rfd1
{[%clk 0:01:56.9]} 21... Nxe5 {[%clk 0:01:36.4]} 22. Bxd5 {[%clk 0:01:54.7]}
22... Bxd5 {[%clk 0:01:30.9]} 23. Qxd5 {[%clk 0:01:55.6]} 23... Nfg6 {[%clk
0:01:08.6]} 24. Qxb7 {[%clk 0:01:34.9]} 24... Rb8 {[%clk 0:01:05.6]} 25. Qxa6
{[%clk 0:01:32.5]} 25... Rxb2 {[%clk 0:01:05]} 26. Rc8 {[%clk 0:01:31.6]} 1-0

[Event "*** Titled Tuesday 3|2 Blitz (Early)"]
[Site "Chess.com"]
[Date "2016.11.01"]
[Round "1"]
[White "michaelk123"]
[Black "Smirnov_Pavel"]
[Result "0-1"]
[WhiteElo "2163"]
[BlackElo "2512"]
[TimeControl "180+2"]
[EndTime "11:05:47 PDT"]
[Termination "Smirnov_Pavel won on time"]

1. e4 {[%clk 0:02:56.5]} 1... c5 {[%clk 0:03:00.4]} 2. Nf3 {[%clk 0:02:49.7]}
2... Nc6 {[%clk 0:03:00.6]} 3. Bb5 {[%clk 0:02:49.8]} 3... g6 {[%clk 0:03:01.1]}
4. Bxc6 {[%clk 0:02:45]} 4... bxc6 {[%clk 0:03:01.5]} 5. O-O {[%clk 0:02:34.1]}
5... Bg7 {[%clk 0:03:01.6]} 6. c3 {[%clk 0:02:33.2]} 6... Nf6 {[%clk 0:03:02]}
7. Re1 {[%clk 0:02:33.3]} 7... Rb8 {[%clk 0:03:02.1]} 8. d4 {[%clk 0:02:20.1]}
8... cxd4 {[%clk 0:03:02]} 9. cxd4 {[%clk 0:02:22]} 9... O-O {[%clk 0:03:02.9]}
10. Nc3 {[%clk 0:02:21.8]} 10... d6 {[%clk 0:03:03.1]} 11. h3 {[%clk 0:02:20.8]}
11... Nd7 {[%clk 0:03:03.4]} 12. b3 {[%clk 0:02:17.1]} 12... c5 {[%clk
0:03:03.5]} 13. Bb2 {[%clk 0:02:17]} 13... cxd4 {[%clk 0:03:02.1]} 14. Nxd4
{[%clk 0:02:17.6]} 14... Bb7 {[%clk 0:03:03.1]} 15. Rc1 {[%clk 0:02:13.6]} 15...
Qa5 {[%clk 0:03:01.2]} 16. Nd5 {[%clk 0:02:02.4]} 16... Bxd5 {[%clk 0:02:55.8]}
17. exd5 {[%clk 0:02:03.1]} 17... Qxd5 {[%clk 0:02:54.6]} 18. Nc6 {[%clk
0:01:36.2]} 18... Qxd1 {[%clk 0:02:53.2]} 19. Nxe7+ {[%clk 0:01:37.1]} 19... Kh8
{[%clk 0:02:54.2]} 20. Bxg7+ {[%clk 0:01:38.6]} 20... Kxg7 {[%clk 0:02:55.3]}
21. Rexd1 {[%clk 0:01:39]} 21... Rfe8 {[%clk 0:02:54.6]} 22. Nc6 {[%clk
0:01:35.2]} 22... Rb6 {[%clk 0:02:52.6]} 23. Rxd6 {[%clk 0:00:49.3]} 23... Nb8
{[%clk 0:02:47.2]} 24. Rc4 {[%clk 0:00:07.4]} 24... Re1+ {[%clk 0:02:46.4]} 25.
Kh2 {[%clk 0:00:06.2]} 25... Re2 {[%clk 0:02:47.1]} 26. Rb4 {[%clk 0:00:04.3]}
26... Rxc6 {[%clk 0:02:45]} 0-1

[Event "*** Titled Tuesday 3|2 Blitz (Early)"]
[Site "Chess.com"]
[Date "2016.11.01"]
[Round "1"]
[White "MateusViageiro"]
[Black "Dlugy"]
[Result "0-1"]
[WhiteElo "2306"]
[BlackElo "2589"]
[TimeControl "180+2"]
[EndTime "11:05:57 PDT"]
[Termination "Dlugy won by resignation"]

1. e4 {[%clk 0:02:48.8]} 1... d5 {[%clk 0:02:42.8]} 2. exd5 {[%clk 0:02:49.1]}
2... Qxd5 {[%clk 0:02:00.9]} 3. Nc3 {[%clk 0:02:49]} 3... Qd6 {[%clk 0:02:00.7]}
4. Nf3 {[%clk 0:02:50.2]} 4... Bg4 {[%clk 0:01:20.4]} 5. Be2 {[%clk 0:02:50]}
5... c6 {[%clk 0:01:21.3]} 6. O-O {[%clk 0:02:50]} 6... Nf6 {[%clk 0:01:21.6]}
7. h3 {[%clk 0:02:49.8]} 7... Bh5 {[%clk 0:01:22.5]} 8. d4 {[%clk 0:02:46.7]}
8... Nbd7 {[%clk 0:01:23.7]} 9. Re1 {[%clk 0:02:46.5]} 9... e6 {[%clk
0:01:25.1]} 10. Bg5 {[%clk 0:02:45.6]} 10... Be7 {[%clk 0:01:26.4]} 11. Bh4
{[%clk 0:02:45.9]} 11... Qc7 {[%clk 0:01:26.9]} 12. Bg3 {[%clk 0:02:46.6]} 12...
Bd6 {[%clk 0:01:28.2]} 13. Bxd6 {[%clk 0:02:44.8]} 13... Qxd6 {[%clk 0:01:30.1]}
14. Qd2 {[%clk 0:02:40.5]} 14... O-O {[%clk 0:01:30.6]} 15. Rad1 {[%clk
0:02:40.2]} 15... Rfd8 {[%clk 0:01:30.7]} 16. Qe3 {[%clk 0:02:36.5]} 16... h6
{[%clk 0:01:28.3]} 17. Ne5 {[%clk 0:02:35.6]} 17... Bxe2 {[%clk 0:01:29.1]} 18.
Qxe2 {[%clk 0:02:33.2]} 18... Nb6 {[%clk 0:01:29.6]} 19. f4 {[%clk 0:02:31.8]}
19... Qb4 {[%clk 0:01:30.3]} 20. Nxf7 {[%clk 0:02:26.5]} 20... Kxf7 {[%clk
0:01:29.2]} 21. Qxe6+ {[%clk 0:02:26.5]} 21... Kf8 {[%clk 0:01:30.4]} 22. Qf5
{[%clk 0:02:19.3]} 22... Rxd4 {[%clk 0:01:25.5]} 23. a3 {[%clk 0:02:10.7]} 23...
Qd6 {[%clk 0:01:21]} 24. Ne4 {[%clk 0:02:08.3]} 24... Rxd1 {[%clk 0:01:14]} 25.
Nxd6 {[%clk 0:02:09.2]} 25... Rxe1+ {[%clk 0:01:15.6]} 26. Kf2 {[%clk
0:02:05.3]} 26... Re7 {[%clk 0:01:15.5]} 27. c4 {[%clk 0:01:58.6]} 27... Rd8
{[%clk 0:01:08.8]} 28. c5 {[%clk 0:01:59.4]} 28... Nd5 {[%clk 0:01:04.7]} 29. g4
{[%clk 0:01:58.2]} 29... Kg8 {[%clk 0:01:05.4]} 30. b4 {[%clk 0:01:46.2]} 30...
Rf8 {[%clk 0:01:05.2]} 31. Kg2 {[%clk 0:01:36.2]} 31... Ne3+ {[%clk 0:01:04.9]}
0-1

[Event "*** Titled Tuesday 3|2 Blitz (Early)"]
[Site "Chess.com"]
[Date "2016.11.01"]
[Round "1"]
[White "Alohamora11"]
[Black "Gabrielian_Artur"]
[Result "0-1"]
[WhiteElo "2222"]
[BlackElo "2544"]
[TimeControl "180+2"]
[EndTime "11:06:11 PDT"]
[Termination "Gabrielian_Artur won by resignation"]

1. e4 {[%clk 0:02:12.5]} 1... c5 {[%clk 0:02:57]} 2. Nf3 {[%clk 0:02:12.9]} 2...
d6 {[%clk 0:02:58]} 3. d4 {[%clk 0:02:14.1]} 3... cxd4 {[%clk 0:02:59.1]} 4.
Nxd4 {[%clk 0:02:16]} 4... Nf6 {[%clk 0:03:00.4]} 5. Nc3 {[%clk 0:02:17.3]} 5...
a6 {[%clk 0:03:01.7]} 6. h3 {[%clk 0:02:17.8]} 6... e6 {[%clk 0:03:01.4]} 7. g4
{[%clk 0:02:18.2]} 7... Be7 {[%clk 0:03:02.6]} 8. Be3 {[%clk 0:02:17.3]} 8...
Nfd7 {[%clk 0:03:00.9]} 9. Bg2 {[%clk 0:02:15]} 9... Nc6 {[%clk 0:02:55.4]} 10.
Qe2 {[%clk 0:01:54.6]} 10... Qc7 {[%clk 0:02:55.1]} 11. O-O-O {[%clk 0:01:53.3]}
11... O-O {[%clk 0:02:52.8]} 12. f4 {[%clk 0:01:52.5]} 12... Rb8 {[%clk
0:02:49.6]} 13. Kb1 {[%clk 0:01:44.3]} 13... Nxd4 {[%clk 0:02:49.8]} 14. Bxd4
{[%clk 0:01:46]} 14... b5 {[%clk 0:02:51.1]} 15. Qe3 {[%clk 0:01:30.3]} 15...
Bb7 {[%clk 0:02:44]} 16. Rhg1 {[%clk 0:01:23.3]} 16... b4 {[%clk 0:02:44.4]} 17.
Na4 {[%clk 0:01:23.4]} 17... Bc6 {[%clk 0:02:44.8]} 18. b3 {[%clk 0:01:20]}
18... Bxa4 {[%clk 0:02:45.8]} 19. bxa4 {[%clk 0:01:21.9]} 19... Rfc8 {[%clk
0:02:43.5]} 20. Rd2 {[%clk 0:01:11]} 20... e5 {[%clk 0:02:25]} 21. Bb2 {[%clk
0:01:05.5]} 21... Nb6 {[%clk 0:02:22.2]} 22. fxe5 {[%clk 0:01:02.8]} 22... Nc4
{[%clk 0:02:02.4]} 23. exd6 {[%clk 0:00:52.8]} 23... Bxd6 {[%clk 0:02:02.1]} 24.
Qd4 {[%clk 0:00:48.2]} 24... Be5 {[%clk 0:01:58.9]} 25. Qd7 {[%clk 0:00:48.1]}
25... Bxb2 {[%clk 0:01:44.8]} 26. Qxc7 {[%clk 0:00:44.5]} 26... Nxd2+ {[%clk
0:01:44.4]} 27. Kxb2 {[%clk 0:00:46.3]} 27... Rxc7 {[%clk 0:01:45.7]} 0-1

[Event "*** Titled Tuesday 3|2 Blitz (Early)"]
[Site "Chess.com"]
[Date "2016.11.01"]
[Round "1"]
[White "Evgeny_Levin"]
[Black "Grebeniuk-S"]
[Result "1-0"]
[WhiteElo "2681"]
[BlackElo "2407"]
[TimeControl "180+2"]
[EndTime "11:06:19 PDT"]
[Termination "Evgeny_Levin won by resignation"]

1. d4 {[%clk 0:02:59.1]} 1... f5 {[%clk 0:03:00]} 2. Nc3 {[%clk 0:02:56.8]} 2...
Nf6 {[%clk 0:03:00.4]} 3. Bg5 {[%clk 0:02:57.2]} 3... d5 {[%clk 0:03:01.7]} 4.
f3 {[%clk 0:02:57.2]} 4... Qd6 {[%clk 0:02:28.7]} 5. Qd2 {[%clk 0:02:55.1]} 5...
c6 {[%clk 0:02:03.5]} 6. O-O-O {[%clk 0:02:53.2]} 6... Be6 {[%clk 0:02:00.8]} 7.
Nh3 {[%clk 0:02:46.8]} 7... Nbd7 {[%clk 0:01:52.9]} 8. Kb1 {[%clk 0:02:33.9]}
8... Qb4 {[%clk 0:01:41]} 9. e4 {[%clk 0:02:25.2]} 9... fxe4 {[%clk 0:01:33.3]}
10. Nb5 {[%clk 0:02:22.3]} 10... Qxd2 {[%clk 0:01:22.7]} 11. Nc7+ {[%clk
0:02:20.8]} 11... Kf7 {[%clk 0:01:24.1]} 12. Bxd2 {[%clk 0:02:21.4]} 12... Bxh3
{[%clk 0:01:06.1]} 13. Nxa8 {[%clk 0:02:22.3]} 13... Bf5 {[%clk 0:01:04.7]} 14.
g4 {[%clk 0:02:14.8]} 14... Bg6 {[%clk 0:01:03.2]} 15. g5 {[%clk 0:02:10.8]}
15... Nh5 {[%clk 0:00:49.9]} 16. fxe4 {[%clk 0:02:09.3]} 16... Bxe4 {[%clk
0:00:49.2]} 17. Be2 {[%clk 0:01:56.8]} 17... Bxh1 {[%clk 0:00:30.8]} 18. Bxh5+
{[%clk 0:01:56.3]} 18... g6 {[%clk 0:00:31.9]} 19. Bg4 {[%clk 0:01:57.9]} 19...
Be4 {[%clk 0:00:14.3]} 20. Bxd7 {[%clk 0:01:53.5]} 20... e6 {[%clk 0:00:15.7]}
21. Nc7 {[%clk 0:01:26.5]} 21... Ke7 {[%clk 0:00:15.6]} 22. Bxe6 {[%clk
0:01:24.7]} 22... Kd6 {[%clk 0:00:15.9]} 23. Bf4+ {[%clk 0:01:25]} 23... Ke7
{[%clk 0:00:14.5]} 24. Be5 {[%clk 0:01:26.9]} 1-0

[Event "*** Titled Tuesday 3|2 Blitz (Early)"]
[Site "Chess.com"]
[Date "2016.11.01"]
[Round "1"]
[White "ftorodent"]
[Black "PowerThinking2650"]
[Result "1-0"]
[WhiteElo "2520"]
[BlackElo "2185"]
[TimeControl "180+2"]
[EndTime "11:06:19 PDT"]
[Termination "ftorodent won on time"]

1. d4 {[%clk 0:03:01.9]} 1... Nf6 {[%clk 0:03:00.5]} 2. c4 {[%clk 0:03:02.8]}
2... g6 {[%clk 0:03:01.6]} 3. Nc3 {[%clk 0:03:01.6]} 3... Bg7 {[%clk 0:03:01.9]}
4. e4 {[%clk 0:03:01.7]} 4... d6 {[%clk 0:03:00.5]} 5. Be2 {[%clk 0:03:02.3]}
5... O-O {[%clk 0:03:00.3]} 6. Nf3 {[%clk 0:03:03.2]} 6... e5 {[%clk 0:03:00.2]}
7. O-O {[%clk 0:03:03.7]} 7... Nc6 {[%clk 0:03:00.2]} 8. d5 {[%clk 0:03:04.5]}
8... Ne7 {[%clk 0:03:01.3]} 9. a4 {[%clk 0:03:05.5]} 9... a5 {[%clk 0:03:00.9]}
10. b3 {[%clk 0:03:04.7]} 10... b6 {[%clk 0:03:01.5]} 11. Ba3 {[%clk 0:03:05.3]}
11... Nh5 {[%clk 0:03:01.9]} 12. b4 {[%clk 0:02:44.3]} 12... axb4 {[%clk
0:02:57.3]} 13. Bxb4 {[%clk 0:02:45.3]} 13... Nf4 {[%clk 0:02:55.9]} 14. a5
{[%clk 0:02:46]} 14... bxa5 {[%clk 0:02:15.2]} 15. Rxa5 {[%clk 0:02:46.1]} 15...
Rb8 {[%clk 0:02:08.2]} 16. Nb5 {[%clk 0:02:44.8]} 16... f5 {[%clk 0:02:05.2]}
17. Nd2 {[%clk 0:02:45.7]} 17... c5 {[%clk 0:01:53]} 18. Bc3 {[%clk 0:02:29.5]}
18... fxe4 {[%clk 0:01:38.6]} 19. Nxe4 {[%clk 0:02:29.3]} 19... Nf5 {[%clk
0:01:36.3]} 20. Bg4 {[%clk 0:02:22.5]} 20... Rb6 {[%clk 0:01:12]} 21. Ra8 {[%clk
0:02:10.5]} 21... Qe7 {[%clk 0:00:28.9]} 22. Re1 {[%clk 0:01:49.9]} 22... h5
{[%clk 0:00:22.7]} 23. Be2 {[%clk 0:01:42.3]} 23... Bd7 {[%clk 0:00:16]} 24. Ra7
{[%clk 0:01:41.8]} 1-0

[Event "*** Titled Tuesday 3|2 Blitz (Early)"]
[Site "Chess.com"]
[Date "2016.11.01"]
[Round "1"]
[White "oskariot"]
[Black "ZapataCharlesS"]
[Result "0-1"]
[WhiteElo "2407"]
[BlackElo "2640"]
[TimeControl "180+2"]
[EndTime "11:06:26 PDT"]
[Termination "ZapataCharlesS won by resignation"]

1. e4 {[%clk 0:03:02]} 1... c5 {[%clk 0:01:53.1]} 2. Nf3 {[%clk 0:02:59.9]} 2...
Nc6 {[%clk 0:01:54.2]} 3. d4 {[%clk 0:03:01.5]} 3... cxd4 {[%clk 0:01:53.8]} 4.
Nxd4 {[%clk 0:03:03.4]} 4... g6 {[%clk 0:01:54.8]} 5. c4 {[%clk 0:03:04.2]} 5...
Bg7 {[%clk 0:01:54.3]} 6. Nc2 {[%clk 0:03:04.9]} 6... d6 {[%clk 0:01:52.3]} 7.
Be2 {[%clk 0:03:06.3]} 7... f5 {[%clk 0:01:54.1]} 8. exf5 {[%clk 0:03:02.2]}
8... Bxf5 {[%clk 0:01:49.2]} 9. Nc3 {[%clk 0:03:02.9]} 9... Bxc3+ {[%clk
0:01:47.4]} 10. bxc3 {[%clk 0:03:03.9]} 10... Nf6 {[%clk 0:01:45.1]} 11. O-O
{[%clk 0:03:04.7]} 11... O-O {[%clk 0:01:43.5]} 12. Ne3 {[%clk 0:02:46]} 12...
Be6 {[%clk 0:01:42.7]} 13. Nd5 {[%clk 0:02:33.3]} 13... Bxd5 {[%clk 0:01:42.9]}
14. cxd5 {[%clk 0:02:34.7]} 14... Ne5 {[%clk 0:01:44.8]} 15. Bh6 {[%clk
0:02:35.5]} 15... Rf7 {[%clk 0:01:38.8]} 16. a4 {[%clk 0:02:33.7]} 16... Rc8
{[%clk 0:01:38.7]} 17. Qd4 {[%clk 0:02:34.4]} 17... Ned7 {[%clk 0:01:31.6]} 18.
a5 {[%clk 0:02:29.9]} 18... a6 {[%clk 0:01:31.1]} 19. Rfe1 {[%clk 0:02:21.6]}
19... Nc5 {[%clk 0:01:31.9]} 20. Bf1 {[%clk 0:02:22.5]} 20... Nb3 {[%clk
0:01:30.2]} 21. Qd3 {[%clk 0:02:16.3]} 21... Nxa1 {[%clk 0:01:30.6]} 22. Rxa1
{[%clk 0:02:18.2]} 22... Ng4 {[%clk 0:01:24.8]} 23. Bg5 {[%clk 0:02:03]} 23...
Nxf2 {[%clk 0:01:23.8]} 24. Qd4 {[%clk 0:02:03.3]} 24... Qc7 {[%clk 0:01:13.4]}
25. Be3 {[%clk 0:01:50.9]} 25... Rcf8 {[%clk 0:01:14.9]} 26. h3 {[%clk
0:01:50.8]} 26... Nh1 {[%clk 0:01:03.5]} 27. Be2 {[%clk 0:01:32.8]} 27... Ng3
{[%clk 0:01:03.9]} 28. Bg4 {[%clk 0:01:33.7]} 28... h5 {[%clk 0:00:58.9]} 29.
Bf3 {[%clk 0:01:07.7]} 29... Rxf3 {[%clk 0:00:58.9]} 30. gxf3 {[%clk 0:01:07.5]}
30... Ne2+ {[%clk 0:00:59.3]} 0-1

[Event "*** Titled Tuesday 3|2 Blitz (Early)"]
[Site "Chess.com"]
[Date "2016.11.01"]
[Round "1"]
[White "IIIlllII1llIl"]
[Black "saraswathii"]
[Result "1-0"]
[WhiteElo "2504"]
[BlackElo "2154"]
[TimeControl "180+2"]
[EndTime "11:06:33 PDT"]
[Termination "IIIlllII1llIl won by resignation"]

1. e4 {[%clk 0:02:14.5]} 1... c5 {[%clk 0:02:38.6]} 2. c3 {[%clk 0:02:15.6]}
2... Nf6 {[%clk 0:02:35.3]} 3. e5 {[%clk 0:02:16.6]} 3... Nd5 {[%clk 0:02:36]}
4. Nf3 {[%clk 0:02:18.3]} 4... Nc6 {[%clk 0:02:35.9]} 5. Bc4 {[%clk 0:02:18.4]}
5... Nb6 {[%clk 0:02:36.9]} 6. Bb3 {[%clk 0:02:19.6]} 6... c4 {[%clk 0:02:37.1]}
7. Bc2 {[%clk 0:02:20.2]} 7... d6 {[%clk 0:02:37.8]} 8. exd6 {[%clk 0:02:22.1]}
8... exd6 {[%clk 0:02:38.6]} 9. O-O {[%clk 0:02:22.3]} 9... Be7 {[%clk
0:02:37.9]} 10. a4 {[%clk 0:02:18.3]} 10... a6 {[%clk 0:02:29.9]} 11. a5 {[%clk
0:02:12.1]} 11... Nd7 {[%clk 0:02:30.1]} 12. Re1 {[%clk 0:01:35.9]} 12... O-O
{[%clk 0:02:30.2]} 13. d3 {[%clk 0:01:29.7]} 13... cxd3 {[%clk 0:02:24.4]} 14.
Qxd3 {[%clk 0:01:31.6]} 14... f5 {[%clk 0:02:23.6]} 15. Qd5+ {[%clk 0:01:02.4]}
15... Kh8 {[%clk 0:02:23.1]} 16. Bxf5 {[%clk 0:01:02]} 16... Nf6 {[%clk
0:02:16.7]} 17. Qd3 {[%clk 0:01:00.5]} 17... Nxa5 {[%clk 0:02:09.2]} 18. Bxc8
{[%clk 0:00:49.7]} 18... Rxc8 {[%clk 0:02:08.7]} 19. Rxa5 {[%clk 0:00:45.7]}
19... Qxa5 {[%clk 0:02:09.2]} 20. Rxe7 {[%clk 0:00:46.7]} 20... Rce8 {[%clk
0:02:08.6]} 21. Rxe8 {[%clk 0:00:46.8]} 21... Rxe8 {[%clk 0:02:09.2]} 22. h3
{[%clk 0:00:45.7]} 22... Ne4 {[%clk 0:02:00.2]} 23. Na3 {[%clk 0:00:43.9]} 23...
Qb6 {[%clk 0:01:58.9]} 24. Qd4 {[%clk 0:00:40.3]} 24... Qc7 {[%clk 0:01:56.1]}
25. Nc4 {[%clk 0:00:39.2]} 25... b5 {[%clk 0:01:56]} 26. Ne3 {[%clk 0:00:40.2]}
26... Qa5 {[%clk 0:01:53.1]} 27. Nf5 {[%clk 0:00:39.1]} 27... Nf6 {[%clk
0:01:47.1]} 28. Bh6 {[%clk 0:00:39.2]} 28... Re6 {[%clk 0:01:39.6]} 29. Bxg7+
{[%clk 0:00:39.3]} 29... Kg8 {[%clk 0:01:40.7]} 30. Bxf6 {[%clk 0:00:40.4]}
30... Qa1+ {[%clk 0:01:39.2]} 31. Kh2 {[%clk 0:00:41]} 31... Qb1 {[%clk
0:01:38.5]} 32. Qg4+ {[%clk 0:00:36.5]} 32... Kf8 {[%clk 0:01:37.4]} 33. Qg7+
{[%clk 0:00:36.3]} 33... Ke8 {[%clk 0:01:38.7]} 34. Nxd6+ {[%clk 0:00:37.1]} 1-0

[Event "*** Titled Tuesday 3|2 Blitz (Early)"]
[Site "Chess.com"]
[Date "2016.11.01"]
[Round "1"]
[White "ChessWarrior7197"]
[Black "Mbneu"]
[Result "1-0"]
[WhiteElo "2499"]
[BlackElo "2124"]
[TimeControl "180+2"]
[EndTime "11:06:39 PDT"]
[Termination "ChessWarrior7197 won by resignation"]

1. e4 {[%clk 0:03:00.6]} 1... d6 {[%clk 0:00:55.6]} 2. d4 {[%clk 0:02:59]} 2...
Nf6 {[%clk 0:00:56.4]} 3. Nc3 {[%clk 0:02:59.5]} 3... g6 {[%clk 0:00:57.7]} 4.
Be3 {[%clk 0:02:59.1]} 4... Bg7 {[%clk 0:00:58.9]} 5. h3 {[%clk 0:03:00.5]} 5...
c6 {[%clk 0:00:59.1]} 6. a4 {[%clk 0:03:00.4]} 6... Nbd7 {[%clk 0:01:00.6]} 7.
Nf3 {[%clk 0:03:01.4]} 7... e5 {[%clk 0:01:01.9]} 8. Be2 {[%clk 0:03:00.6]} 8...
Qc7 {[%clk 0:01:02.1]} 9. O-O {[%clk 0:03:01]} 9... a6 {[%clk 0:01:01.3]} 10. a5
{[%clk 0:03:00.7]} 10... Nf8 {[%clk 0:01:00.7]} 11. Nd2 {[%clk 0:02:59.3]} 11...
Ne6 {[%clk 0:01:00.6]} 12. dxe5 {[%clk 0:03:00]} 12... dxe5 {[%clk 0:01:01.2]}
13. Nc4 {[%clk 0:03:01]} 13... Nd7 {[%clk 0:01:00.1]} 14. Nd6+ {[%clk
0:03:01.7]} 14... Ke7 {[%clk 0:01:00.6]} 15. Nc4 {[%clk 0:02:57.5]} 15... Rd8
{[%clk 0:01:00.6]} 16. Qb1 {[%clk 0:02:56.8]} 16... Kf8 {[%clk 0:01:00.1]} 17.
Nb6 {[%clk 0:02:56.8]} 17... Rb8 {[%clk 0:00:57.5]} 18. Qa2 {[%clk 0:02:56.7]}
18... c5 {[%clk 0:00:56]} 19. Ncd5 {[%clk 0:02:57]} 19... Qc6 {[%clk 0:00:56.5]}
20. Rad1 {[%clk 0:02:56.7]} 20... Nxb6 {[%clk 0:00:54.6]} 21. Nxb6 {[%clk
0:02:55.4]} 21... Nd4 {[%clk 0:00:55.2]} 22. Bd3 {[%clk 0:02:52.6]} 22... Be6
{[%clk 0:00:55.8]} 23. Qa3 {[%clk 0:02:48.9]} 23... Kg8 {[%clk 0:00:56]} 24. c3
{[%clk 0:02:49.1]} 24... Nb5 {[%clk 0:00:51.6]} 25. Qxc5 {[%clk 0:02:47.3]}
25... Bb3 {[%clk 0:00:44.4]} 26. Qxc6 {[%clk 0:02:37.2]} 26... bxc6 {[%clk
0:00:44.5]} 27. Rd2 {[%clk 0:02:38.4]} 27... Nd6 {[%clk 0:00:36.6]} 28. f3
{[%clk 0:02:35.8]} 28... Bf6 {[%clk 0:00:33.1]} 29. Bxa6 {[%clk 0:02:36.5]}
29... Be7 {[%clk 0:00:24.3]} 30. Be2 {[%clk 0:02:36.8]} 30... f5 {[%clk
0:00:24.1]} 31. a6 {[%clk 0:02:35.2]} 31... fxe4 {[%clk 0:00:20.6]} 32. a7
{[%clk 0:02:36.4]} 32... Ra8 {[%clk 0:00:21.6]} 33. Nxa8 {[%clk 0:02:36.9]}
33... Rxa8 {[%clk 0:00:23.5]} 34. fxe4 {[%clk 0:02:38.4]} 34... Nxe4 {[%clk
0:00:22.3]} 35. Rd7 {[%clk 0:02:38.9]} 35... Bc5 {[%clk 0:00:23.3]} 36. Bxc5
{[%clk 0:02:35.8]} 36... Nxc5 {[%clk 0:00:23.7]} 37. Re7 {[%clk 0:02:37.1]}
37... e4 {[%clk 0:00:20.5]} 38. Re5 {[%clk 0:02:31.8]} 38... Nd3 {[%clk
0:00:18]} 39. Rxe4 {[%clk 0:02:31.8]} 39... Nxb2 {[%clk 0:00:18.5]} 40. Rb4
{[%clk 0:02:32.7]} 1-0